bitfinex/quotes_BTCUSD_20250523
["timestamp","ask_amount","ask_price","bid_price","bid_amount"]
[1748009344129,0.00042308,109770.0,109760.0,2.09571239]
[1748009344521,0.00042308,109770.0,109760.0,2.09467239]
[1748009344729,0.20995026,109770.0,109760.0,1.36448219]
[1748009344930,0.02775112,109770.0,109760.0,2.08209154]
[1748009345135,0.01864158,109770.0,109760.0,2.08209154]
[1748009345379,0.00042308,109770.0,109760.0,2.09563239]
[1748009345775,0.00042308,109770.0,109760.0,2.08357596]
[1748009346162,0.00042308,109770.0,109760.0,2.10466451]
[1748009346402,0.00042308,109770.0,109760.0,2.09012366]
[1748009346597,0.00042308,109770.0,109760.0,1.25521501]
[1748009346823,0.01864174,109770.0,109760.0,1.81865428]
[1748009347013,0.22817015,109770.0,109760.0,0.52984579]
[1748009347169,0.22817015,109770.0,109760.0,0.75455723]
[1748009347170,0.20084187,109770.0,109760.0,0.75455723]
[1748009347375,0.20084187,109770.0,109760.0,1.09455723]
[1748009347756,0.20084187,109770.0,109760.0,0.03355723]
[1748009347961,0.26584187,109770.0,109760.0,0.75451723]
[1748009348177,0.26584187,109770.0,109760.0,0.73142868]
[1748009348588,0.26584187,109770.0,109760.0,0.72942868]
[1748009348801,0.26584187,109770.0,109760.0,0.72096]
[1748009350675,0.02733102,109760.0,109750.0,0.22778747]
[1748009350882,0.00042308,109770.0,109760.0,0.54954709]
[1748009351291,0.01864199,109770.0,109760.0,1.27905115]
[1748009351489,0.01864207,109770.0,109760.0,1.27905115]
[1748009351731,0.209951,109770.0,109760.0,1.27296725]
[1748009351930,0.209951,109770.0,109760.0,1.2911884]
[1748009352139,0.209951,109770.0,109760.0,1.30029876]
[1748009352337,0.21906087,109770.0,109760.0,1.30029876]
[1748009352542,0.22817082,109770.0,109760.0,1.30029876]
[1748009352745,0.00042308,109770.0,109760.0,1.71455452]
[1748009353181,0.18219449,109800.0,109790.0,0.20948983]
[1748009353182,4e-05,109800.0,109790.0,0.20948983]
[1748009353387,4e-05,109800.0,109790.0,2.51449223]
[1748009354200,4e-05,109800.0,109790.0,2.54609223]
[1748009354405,4e-05,109800.0,109790.0,2.57629223]
[1748009354615,4e-05,109800.0,109790.0,2.57829223]
[1748009354880,4e-05,109800.0,109790.0,2.61195425]
[1748009355356,4e-05,109800.0,109790.0,2.61395425]
[1748009356258,4e-05,109800.0,109790.0,2.62811039]
[1748009356728,4e-05,109800.0,109790.0,2.56631039]
[1748009356942,4e-05,109800.0,109790.0,2.59831039]
[1748009357183,4e-05,109800.0,109790.0,2.62831039]
[1748009357865,0.01825377,109800.0,109790.0,2.55215425]
[1748009358120,0.20951075,109800.0,109790.0,1.83484557]
[1748009358337,0.20951075,109800.0,109790.0,2.02611965]
[1748009358780,0.20951075,109800.0,109790.0,2.01701152]
[1748009359003,0.21861804,109800.0,109790.0,2.0337187]
[1748009359257,0.20040403,109800.0,109790.0,0.44220146]
[1748009359517,0.20040403,109800.0,109790.0,1.4650159]
[1748009359746,0.20040403,109800.0,109790.0,1.1250159]
[1748009359747,0.26440403,109800.0,109790.0,1.1250159]
[1748009359975,0.26440403,109800.0,109790.0,1.32539818]
[1748009359976,0.20040403,109800.0,109790.0,1.32539818]
[1748009360191,0.20040403,109800.0,109790.0,1.31629014]
[1748009360413,0.0182541,109800.0,109790.0,1.34361386]
[1748009360632,0.20951026,109800.0,109790.0,1.41494383]
[1748009360862,0.0364682,109800.0,109790.0,1.4331595]
[1748009361587,0.01825369,109800.0,109790.0,2.6483815]
[1748009361813,0.26320371,109800.0,109790.0,1.1249759]
[1748009362657,0.25113604,109800.0,109790.0,1.1249759]
[1748009363071,0.25113604,109800.0,109790.0,1.1229759]
[1748009363284,0.25113604,109800.0,109790.0,1.1209759]
[1748009364554,0.19744334,109800.0,109790.0,1.32135802]
[1748009364763,0.19744334,109800.0,109790.0,1.33046598]
[1748009365221,0.0632,109820.0,109800.0,0.20947034]
[1748009365395,0.19122551,109820.0,109810.0,0.45509277]
[1748009365651,0.19122551,109820.0,109810.0,0.27296]
[1748009365866,0.22372551,109820.0,109810.0,0.27296]
[1748009366289,0.25692551,109820.0,109810.0,0.29421258]
[1748009366495,0.26092551,109820.0,109810.0,0.29421258]
[1748009366940,0.25992551,109820.0,109810.0,0.29421258]
[1748009367162,0.26192551,109820.0,109810.0,0.29421258]
[1748009367366,0.26192551,109820.0,109810.0,0.30271664]
[1748009369243,0.02732139,109800.0,109790.0,0.09986224]
[1748009369428,0.02732139,109800.0,109790.0,1.38736955]
[1748009369767,0.19125505,109810.0,109790.0,1.38736922]
[1748009369970,0.00910804,109790.0,109780.0,0.01061711]
[1748009370175,0.35362768,109790.0,109780.0,0.01076899]
[1748009370730,0.26408212,109790.0,109780.0,0.01076899]
[1748009371352,0.26408212,109790.0,109780.0,0.73000899]
[1748009371689,0.26408212,109790.0,109780.0,0.71939188]
[1748009372071,0.25908212,109790.0,109780.0,0.71939188]
[1748009372665,0.25908212,109790.0,109780.0,0.72039188]
[1748009372897,0.26108212,109790.0,109780.0,0.71939188]
[1748009373252,0.26308212,109790.0,109780.0,0.00015188]
[1748009373454,0.26308212,109790.0,109780.0,0.71939188]
[1748009374617,0.39715083,109790.0,109780.0,0.44647188]
[1748009374824,0.35262768,109790.0,109780.0,0.44647188]
[1748009374994,0.42704975,109790.0,109780.0,0.44647188]
[1748009375644,0.35262768,109790.0,109780.0,0.44647188]
[1748009375864,0.36861982,109790.0,109780.0,0.44647188]
[1748009376864,0.79758274,109790.0,109780.0,0.00015188]
[1748009377117,0.2005098,109720.0,109710.0,0.01061711]
[1748009377300,0.35375536,109720.0,109710.0,0.00050862]
[1748009377691,0.40735894,109720.0,109710.0,0.00050862]
[1748009378120,0.42189979,109720.0,109710.0,0.00050862]
[1748009378584,0.35375536,109720.0,109710.0,0.00050862]
[1748009379192,0.35375536,109720.0,109710.0,0.44686862]
[1748009379968,0.35475536,109720.0,109710.0,0.44686862]
[1748009380167,0.35475536,109720.0,109710.0,0.44986862]
[1748009380371,0.35475536,109720.0,109710.0,0.44686862]
[1748009380721,0.38851448,109720.0,109710.0,0.44686862]
[1748009380923,0.38851448,109720.0,109710.0,0.44698862]
[1748009381148,0.35575536,109720.0,109710.0,0.00050862]
[1748009381356,0.35575536,109720.0,109710.0,0.44698862]
[1748009382320,1.04175536,109720.0,109710.0,0.44698862]
[1748009382962,0.35575536,109720.0,109710.0,0.44698862]
[1748009383956,0.35575536,109720.0,109710.0,0.00050862]
[1748009384189,0.44527687,109720.0,109710.0,0.44702862]
[1748009385551,0.35575536,109720.0,109710.0,0.44702862]
[1748009385976,1.14079986,109720.0,109710.0,0.00050862]
[1748009386190,1.15079986,109720.0,109710.0,0.00050862]
[1748009386400,0.2775872,109700.0,109690.0,0.0005]
[1748009386607,1.13763641,109700.0,109690.0,0.00065194]
[1748009386874,1.41075641,109700.0,109690.0,0.00065194]
[1748009387515,1.41075641,109700.0,109640.0,0.39328]
[1748009387516,0.20063781,109650.0,109640.0,0.39328]
[1748009387690,0.20063781,109650.0,109640.0,1.11112]
[1748009387920,0.20063781,109650.0,109640.0,1.11127196]
[1748009387921,0.32108337,109650.0,109640.0,1.11127196]
[1748009388351,0.35168337,109650.0,109640.0,0.39343196]
[1748009388549,0.40203136,109650.0,109640.0,0.83815196]
[1748009389588,0.40203136,109650.0,109640.0,0.83915196]
[1748009390056,0.40203136,109650.0,109640.0,0.83815196]
[1748009390267,1.17353501,109650.0,109640.0,0.00015196]
[1748009390683,1.01623136,109650.0,109640.0,0.00015196]
[1748009391039,1.01623136,109650.0,109620.0,0.44484]
[1748009391040,0.18243181,109630.0,109620.0,0.44484]
[1748009391225,0.18243181,109630.0,109620.0,0.44534799]
[1748009391226,0.27197737,109630.0,109620.0,0.44534799]
[1748009391419,0.27397737,109630.0,109620.0,0.44534799]
[1748009391852,0.38071808,109630.0,109620.0,0.44534799]
[1748009392030,0.33507737,109630.0,109620.0,0.44534799]
[1748009393438,0.33907737,109630.0,109620.0,0.44534799]
[1748009393741,0.34307737,109630.0,109620.0,0.44534799]
[1748009393937,0.34307737,109630.0,109620.0,0.00050799]
[1748009394142,0.43259888,109630.0,109620.0,0.00050799]
[1748009394580,1.49092338,109630.0,109620.0,0.00050799]
[1748009394783,1.56534545,109630.0,109620.0,0.00050799]
[1748009396057,1.21764338,109630.0,109620.0,0.00050799]
[1748009396229,0.95639737,109630.0,109620.0,0.00050799]
[1748009396447,0.34307737,109630.0,109620.0,0.00050799]
[1748009397615,0.28197737,109630.0,109620.0,0.00050799]
[1748009397822,0.10866698,109630.0,109620.0,0.00050799]
[1748009398033,0.01,109630.0,109620.0,0.6151227]
[1748009398240,0.01912092,109630.0,109620.0,0.6151227]
[1748009398444,0.03736351,109630.0,109620.0,0.5826227]
[1748009398711,0.22891691,109630.0,109620.0,0.58262286]
[1748009398940,0.01,109630.0,109620.0,0.6218447]
[1748009399153,0.01912092,109630.0,109620.0,0.6218447]
[1748009399357,0.03736351,109630.0,109620.0,0.6218447]
[1748009399788,0.21979532,109630.0,109620.0,0.59447877]
[1748009400003,0.21979532,109630.0,109620.0,0.61272319]
[1748009400220,0.21579532,109630.0,109620.0,0.61272319]
[1748009400424,0.21579532,109630.0,109620.0,0.61472302]
[1748009400850,0.22491682,109630.0,109620.0,0.62384494]
[1748009401085,0.02424209,109630.0,109620.0,0.63296678]
[1748009401336,0.006,109630.0,109620.0,0.71339051]
[1748009401549,0.006,109630.0,109620.0,1.51161084]
[1748009401779,0.006,109630.0,109620.0,1.51261084]
[1748009402215,0.006,109630.0,109620.0,1.37243984]
[1748009402455,0.006,109630.0,109620.0,1.58512236]
[1748009404088,0.006,109630.0,109620.0,0.86664236]
[1748009404320,0.01512092,109630.0,109620.0,1.43016611]
[1748009404437,0.01512092,109630.0,109620.0,1.44555978]
[1748009404643,0.2066744,109630.0,109620.0,1.19432282]
[1748009404868,0.02424209,109630.0,109620.0,1.39801586]
[1748009405069,0.22491665,109630.0,109620.0,1.38889369]
[1748009405291,0.2066749,109630.0,109620.0,1.38889369]
[1748009405537,0.2066749,109630.0,109620.0,0.47888282]
[1748009405839,0.2026749,109630.0,109620.0,1.07121982]
[1748009406160,0.2026749,109630.0,109620.0,0.79785982]
[1748009406333,0.2026749,109630.0,109620.0,0.73121982]
[1748009406517,0.1976749,109630.0,109620.0,0.73421982]
[1748009406714,0.1976749,109630.0,109620.0,1.07421982]
[1748009408497,0.1976749,109630.0,109620.0,1.27491286]
[1748009408739,0.18241619,109640.0,109620.0,1.88176978]
[1748009408740,0.19153694,109640.0,109620.0,1.88176978]
[1748009408947,0.20977635,109640.0,109630.0,0.93655464]
[1748009409165,0.19153576,109640.0,109630.0,0.91603181]
[1748009409364,0.25882175,109650.0,109630.0,0.91603181]
[1748009409365,0.01111959,109650.0,109640.0,0.20977643]
[1748009409577,0.01111959,109650.0,109640.0,1.68856343]
[1748009409578,0.002,109650.0,109640.0,1.68856343]
[1748009409791,0.002,109650.0,109640.0,1.82414984]
[1748009410834,0.02735386,109670.0,109660.0,0.59688723]
[1748009411037,0.20971913,109670.0,109660.0,1.33947279]
[1748009411485,0.20060137,109670.0,109660.0,1.05844]
[1748009411703,0.20060137,109670.0,109660.0,0.34]
[1748009411897,0.20060137,109670.0,109660.0,1.24994082]
[1748009412121,0.19153417,109670.0,109660.0,1.2408219]
[1748009412326,0.19253417,109670.0,109660.0,1.24994091]
[1748009412714,0.19253417,109670.0,109660.0,1.05844]
[1748009412955,0.2107696,109670.0,109660.0,1.05844]
[1748009413159,0.20165201,109670.0,109660.0,1.2584453]
[1748009413461,0.20165201,109670.0,109660.0,0.00850439]
[1748009413642,0.27607408,109670.0,109660.0,0.72690439]
[1748009414718,0.20063781,109650.0,109640.0,0.34]
[1748009414920,0.20063781,109650.0,109640.0,1.05836]
[1748009415141,0.20063781,109650.0,109640.0,0.71836]
[1748009415350,0.20065642,109640.0,109630.0,0.84921711]
[1748009415555,0.26345642,109640.0,109630.0,1.12253711]
[1748009415767,0.26345642,109640.0,109630.0,1.11192]
[1748009415971,0.35300198,109640.0,109630.0,1.11192]
[1748009416200,0.35200198,109640.0,109630.0,1.11192]
[1748009416402,0.25435323,109630.0,109620.0,0.01361711]
[1748009416587,0.34389879,109630.0,109620.0,0.01361711]
[1748009416821,0.41832086,109630.0,109620.0,0.003]
[1748009417411,0.41832086,109630.0,109620.0,0.01133678]
[1748009417618,0.47829446,109630.0,109620.0,0.01133678]
[1748009417827,0.47829446,109630.0,109620.0,0.01184477]
[1748009418234,0.41832086,109630.0,109620.0,0.01184477]
[1748009418440,0.41932086,109630.0,109620.0,0.01184477]
[1748009419546,0.86436536,109630.0,109620.0,0.01184477]
[1748009419948,0.86536536,109630.0,109620.0,0.01184477]
[1748009420379,0.86436536,109630.0,109620.0,0.01184477]
[1748009420581,0.52338322,109630.0,109620.0,0.01184477]
[1748009420744,0.52638322,109630.0,109620.0,0.01184477]
[1748009421236,0.53038322,109630.0,109620.0,0.01184477]
[1748009421507,0.35189879,109630.0,109620.0,0.01184477]
[1748009421710,0.34789879,109630.0,109620.0,0.01184477]
[1748009421882,0.35389879,109630.0,109620.0,0.01184477]
[1748009422642,0.34989879,109630.0,109620.0,0.01184477]
[1748009423043,0.35589879,109630.0,109620.0,0.01184477]
[1748009423243,0.40963019,109630.0,109620.0,0.01184477]
[1748009423470,0.35589879,109630.0,109620.0,0.01184477]
[1748009424244,0.35589879,109630.0,109620.0,0.01084477]
[1748009424443,0.69589879,109630.0,109620.0,0.01084477]
[1748009426990,0.63309879,109630.0,109620.0,0.01084477]
[1748009427372,0.29309879,109630.0,109620.0,0.01084477]
[1748009427641,0.29309879,109630.0,109620.0,0.2229399]
[1748009427642,0.03024193,109630.0,109620.0,0.2229399]
[1748009427864,0.02112092,109630.0,109620.0,1.1276857]
[1748009428040,0.03024193,109630.0,109620.0,0.9802107]
[1748009428374,0.24003808,109630.0,109620.0,1.08821478]
[1748009428582,0.23091724,109630.0,109620.0,1.08821478]
[1748009428790,0.22179615,109630.0,109620.0,1.04819302]
[1748009428982,0.21579615,109630.0,109620.0,1.04215598]
[1748009429227,0.21579548,109630.0,109620.0,1.04215598]
[1748009429423,0.21979548,109630.0,109620.0,0.93741206]
[1748009429623,0.21067448,109630.0,109620.0,0.91916773]
[1748009429743,0.21979523,109630.0,109620.0,0.93741215]
[1748009429943,0.01,109630.0,109620.0,1.13149399]
[1748009430158,0.02824193,109630.0,109620.0,1.18616512]
[1748009430659,0.02824193,109630.0,109620.0,1.29025153]
[1748009430660,0.01,109630.0,109620.0,1.29025153]
[1748009430856,0.07442207,109670.0,109650.0,0.20975731]
[1748009430857,0.00911843,109660.0,109650.0,0.20975731]
[1748009431065,0.03647453,109660.0,109650.0,1.65999731]
[1748009431430,0.21885643,109660.0,109650.0,1.75944497]
[1748009431585,0.21885643,109660.0,109650.0,1.76856448]
[1748009431774,0.209738,109660.0,109650.0,0.53151838]
[1748009432004,0.19150082,109660.0,109650.0,1.45024]
[1748009433297,0.28104638,109660.0,109650.0,1.45024]
[1748009433905,0.28104638,109660.0,109650.0,1.4502]
[1748009434112,0.28104638,109660.0,109650.0,1.4522]
[1748009434504,0.28104638,109660.0,109650.0,0.8388]
[1748009434707,0.28104638,109660.0,109650.0,1.1122]
[1748009434910,0.28104638,109660.0,109650.0,1.11216]
[1748009435363,0.28104638,109660.0,109650.0,0.8388]
[1748009435540,0.28104638,109660.0,109650.0,1.11216]
[1748009436775,0.28104638,109660.0,109650.0,1.11016]
[1748009437126,0.28104638,109660.0,109650.0,1.11116]
[1748009437366,0.28104638,109660.0,109650.0,1.11216]
[1748009437617,0.18236574,109670.0,109650.0,1.29455854]
[1748009437793,0.20971906,109670.0,109660.0,0.2028992]
[1748009438118,0.20971906,109670.0,109660.0,0.54061983]
[1748009438294,0.20060138,109670.0,109660.0,0.54061983]
[1748009438644,0.19148345,109670.0,109660.0,0.34]
[1748009439048,0.19148345,109670.0,109660.0,0.34015218]
[1748009440071,0.19148345,109670.0,109660.0,1.05651218]
[1748009440451,0.19348345,109670.0,109660.0,1.05651218]
[1748009440850,0.002,109670.0,109660.0,1.2662506]
[1748009441049,0.02123561,109670.0,109660.0,1.24801317]
[1748009441281,0.20360154,109670.0,109660.0,1.05651218]
[1748009442091,0.20260154,109670.0,109660.0,1.05651218]
[1748009442456,0.20260154,109670.0,109660.0,0.34015218]
[1748009442855,0.2901471,109670.0,109660.0,1.05651218]
[1748009443153,0.00911801,109670.0,109660.0,1.27553633]
[1748009443367,0.01823519,109670.0,109660.0,1.31201136]
[1748009443497,0.02735303,109670.0,109660.0,1.31301136]
[1748009443880,0.03647104,109670.0,109660.0,1.30389302]
[1748009444090,0.20971921,109670.0,109660.0,1.29477426]
[1748009444293,0.20971921,109670.0,109660.0,1.12297343]
[1748009444294,0.19148336,109670.0,109660.0,1.12297343]
[1748009444832,0.19148336,109670.0,109660.0,1.31447442]
[1748009445013,0.18236527,109670.0,109660.0,1.32359343]
[1748009445217,0.18236527,109670.0,109660.0,1.12297343]
[1748009445670,0.18236527,109670.0,109660.0,0.40661343]
[1748009445849,0.18236527,109670.0,109660.0,1.31447442]
[1748009446056,0.00911784,109670.0,109660.0,1.34183036]
[1748009446252,0.00911734,109680.0,109670.0,0.19148345]
[1748009446482,0.20058309,109680.0,109670.0,0.19148353]
[1748009446986,0.20058309,109680.0,109670.0,0.20060162]
[1748009447183,0.20060146,109670.0,109660.0,1.38549292]
[1748009447412,0.20060146,109670.0,109660.0,1.32259292]
[1748009447735,0.02735437,109670.0,109660.0,1.34083002]
[1748009447946,0.2188374,109670.0,109660.0,1.36431151]
[1748009448146,0.2188374,109670.0,109660.0,1.32259292]
[1748009448454,0.02735387,109670.0,109660.0,1.33271143]
[1748009448641,0.20971914,109670.0,109660.0,1.31447425]
[1748009448851,0.20971914,109670.0,109660.0,1.32359301]
[1748009449249,0.18236527,109670.0,109660.0,0.84965343]
[1748009449456,0.18236527,109670.0,109660.0,1.12297343]
[1748009449653,0.38236527,109670.0,109660.0,1.12297343]
[1748009450444,0.2,109670.0,109660.0,0.60723326]
[1748009450625,0.21823552,109670.0,109660.0,1.70871353]
[1748009450794,0.23647129,109670.0,109660.0,1.70871353]
[1748009450992,0.2273532,109670.0,109660.0,1.70871353]
[1748009451172,0.23647129,109670.0,109660.0,1.70871353]
[1748009451376,0.42795541,109670.0,109660.0,1.70871369]
[1748009451582,0.41883773,109670.0,109660.0,1.54136269]
[1748009451786,0.4097198,109670.0,109660.0,1.32151301]
[1748009452435,0.40060171,109670.0,109660.0,1.31239434]
[1748009452638,0.40060171,109670.0,109660.0,1.32151326]
[1748009452870,0.40060171,109670.0,109660.0,1.3306321]
[1748009453074,0.39148353,109670.0,109660.0,1.32151326]
[1748009453244,0.39148353,109670.0,109660.0,0.84761343]
[1748009453594,0.42328353,109670.0,109660.0,0.84761343]
[1748009453800,0.62035116,109670.0,109660.0,0.02997118]
[1748009454004,1.05085481,109670.0,109660.0,0.02997118]
[1748009454170,1.06539566,109670.0,109660.0,0.02997118]
[1748009454370,0.26533781,109650.0,109640.0,0.441]
[1748009454575,0.22415323,109630.0,109620.0,0.002]
[1748009454778,0.31369879,109630.0,109620.0,0.75332992]
[1748009454986,0.31369879,109630.0,109620.0,0.89923644]
[1748009455179,0.28109879,109630.0,109620.0,0.71678799]
[1748009455877,0.34379879,109630.0,109620.0,0.71678799]
[1748009456083,0.34379879,109630.0,109620.0,0.72517714]
[1748009456674,0.34379879,109630.0,109620.0,0.01085714]
[1748009456879,0.34379879,109630.0,109620.0,0.04696616]
[1748009457132,0.31349879,109630.0,109620.0,0.72517714]
[1748009458076,0.28109879,109630.0,109620.0,0.72517714]
[1748009458506,0.28109879,109630.0,109620.0,0.45189714]
[1748009458709,0.31359879,109630.0,109620.0,0.72517714]
[1748009458910,0.28109879,109630.0,109620.0,0.72517714]
[1748009459254,0.31359879,109630.0,109620.0,0.71690799]
[1748009460489,0.34409879,109630.0,109620.0,0.71690799]
[1748009461024,0.34409879,109630.0,109620.0,0.44358799]
[1748009461231,0.36947541,109630.0,109620.0,0.00250799]
[1748009461525,0.88894198,109630.0,109620.0,0.00250799]
[1748009461728,1.22894198,109630.0,109620.0,0.00250799]
[1748009462139,1.22894198,109630.0,109620.0,0.01086844]
[1748009462544,0.55525186,109610.0,109600.0,0.002]
[1748009462745,1.50088258,109610.0,109600.0,0.002]
[1748009463168,1.57530465,109610.0,109600.0,0.002]
[1748009463581,1.154801,109610.0,109600.0,0.002]
[1748009463786,1.22752258,109610.0,109600.0,0.002]
[1748009463988,1.53874562,109610.0,109600.0,0.002]
[1748009464398,1.54274562,109610.0,109600.0,0.002]
[1748009464606,0.71149742,109610.0,109600.0,0.002]
[1748009464810,0.35260657,109610.0,109600.0,0.002]
[1748009465013,0.32220657,109610.0,109600.0,0.002]
[1748009465223,0.36030657,109610.0,109600.0,0.002]
[1748009465473,0.78781022,109610.0,109600.0,0.002]
[1748009465689,0.89187258,109610.0,109600.0,0.002]
[1748009466236,0.88787258,109610.0,109600.0,0.002]
[1748009466641,1.23387258,109610.0,109600.0,0.002]
[1748009467906,0.37784742,109610.0,109600.0,0.002]
[1748009468120,0.33210657,109610.0,109600.0,0.002]
[1748009468734,0.29990657,109610.0,109600.0,0.002]
[1748009468930,0.29990657,109610.0,109600.0,0.44328]
[1748009469354,0.29990657,109610.0,109600.0,0.63488575]
[1748009469355,0.11744147,109610.0,109600.0,0.63488575]
[1748009469566,0.30902982,109610.0,109600.0,1.38962175]
[1748009469686,0.29990699,109610.0,109600.0,1.17704]
[1748009470475,0.02189591,109610.0,109600.0,1.37776966]
[1748009470680,0.20036101,109610.0,109600.0,1.21014]
[1748009470881,0.20036101,109610.0,109600.0,1.45048]
[1748009471092,0.20236101,109610.0,109600.0,1.45048]
[1748009471463,0.33038899,109610.0,109600.0,1.45048]
[1748009471647,0.29190657,109610.0,109600.0,1.11048]
[1748009471892,0.29290657,109610.0,109600.0,1.11048]
[1748009472076,0.49290657,109610.0,109600.0,1.11048]
[1748009472902,0.52440657,109610.0,109600.0,0.83704]
[1748009473116,0.63172355,109610.0,109600.0,0.83704]
[1748009473333,0.55770657,109610.0,109600.0,0.83704]
[1748009473729,0.55770657,109610.0,109600.0,0.83504]
[1748009474322,0.52440657,109610.0,109600.0,0.83504]
[1748009474525,1.21040657,109610.0,109600.0,0.83504]
[1748009474749,1.24240657,109610.0,109600.0,0.83504]
[1748009474953,1.21040657,109610.0,109600.0,0.83504]
[1748009475541,1.33022808,109610.0,109600.0,0.83504]
[1748009475747,1.24070657,109610.0,109600.0,0.39376]
[1748009476575,1.21040657,109610.0,109600.0,0.39376]
[1748009476787,1.17890657,109610.0,109600.0,0.39376]
[1748009477236,1.17890657,109610.0,109600.0,1.1066]
[1748009479143,0.98766839,109610.0,109600.0,1.34657077]
[1748009479434,0.203,109610.0,109600.0,2.35954027]
[1748009479654,0.203,109610.0,109600.0,2.35119884]
[1748009479866,0.22124525,109610.0,109600.0,1.15223758]
[1748009480081,0.22124525,109610.0,109600.0,0.9892695]
[1748009480082,0.41283393,109610.0,109600.0,0.9892695]
[1748009480302,0.41283393,109610.0,109600.0,0.77388758]
[1748009480303,0.40371118,109610.0,109600.0,0.77388758]
[1748009480511,0.41083443,109610.0,109600.0,0.97461717]
[1748009480761,0.201,109610.0,109600.0,1.24556067]
[1748009480971,0.2,109610.0,109600.0,1.51904067]
[1748009481215,0.22736849,109610.0,109600.0,1.28099717]
[1748009481442,0.40983426,109610.0,109600.0,1.27899733]
[1748009481681,0.40071143,109610.0,109600.0,1.27899733]
[1748009481929,0.40071143,109610.0,109600.0,1.28812091]
[1748009482365,0.2,109610.0,109600.0,1.48948341]
[1748009482570,0.21824517,109610.0,109600.0,1.39751441]
[1748009482720,0.21824508,109610.0,109600.0,1.42831441]
[1748009482918,0.2,109610.0,109600.0,1.42831441]
[1748009483118,0.21824508,109610.0,109600.0,1.42831441]
[1748009483328,0.23649091,109610.0,109600.0,1.42831441]
[1748009483537,0.24561399,109610.0,109600.0,1.32804441]
[1748009484093,0.21824508,109610.0,109600.0,1.53900941]
[1748009484308,0.2,109610.0,109600.0,1.62855497]
[1748009485500,0.2091225,109610.0,109600.0,1.64110459]
[1748009485702,0.2091225,109610.0,109600.0,1.32695345]
[1748009485703,0.40071101,109610.0,109600.0,1.32695345]
[1748009485904,0.40071101,109610.0,109600.0,1.04875345]
[1748009486112,0.40071101,109610.0,109600.0,1.2312352]
[1748009486310,0.40071101,109610.0,109600.0,1.63407928]
[1748009486509,0.40071101,109610.0,109600.0,1.64320328]
[1748009486720,0.39158818,109610.0,109600.0,0.83704]
[1748009486941,0.39158818,109610.0,109600.0,0.84139804]
[1748009486942,0.64475949,109610.0,109600.0,0.84139804]
[1748009487235,0.67605949,109610.0,109600.0,0.40207804]
[1748009487401,0.67605949,109610.0,109600.0,0.40607804]
[1748009487602,0.69060034,109610.0,109600.0,0.40207804]
[1748009487923,0.69260034,109610.0,109600.0,0.39372]
[1748009488095,0.69260034,109610.0,109600.0,0.39772]
[1748009488473,0.69260034,109610.0,109600.0,0.39372]
[1748009488696,0.61817827,109610.0,109600.0,0.39372]
[1748009488902,0.56177459,109610.0,109600.0,0.39372]
[1748009489821,0.56177459,109610.0,109600.0,0.40208408]
[1748009490024,0.54723374,109610.0,109600.0,0.40208408]
[1748009490263,0.48413374,109610.0,109600.0,0.40208408]
[1748009490477,0.48413374,109610.0,109600.0,1.11484408]
[1748009490910,0.58129197,109610.0,109600.0,1.11484408]
[1748009491128,0.51463374,109610.0,109600.0,1.11484408]
[1748009491340,0.48413374,109610.0,109600.0,1.11484408]
[1748009492115,0.48413374,109610.0,109600.0,0.71912408]
[1748009493398,0.48413374,109610.0,109600.0,0.00636408]
[1748009493604,0.48413374,109610.0,109600.0,0.71912408]
[1748009494018,0.02737374,109590.0,109580.0,0.27229019]
[1748009494182,0.02737374,109590.0,109580.0,1.01426819]
[1748009494405,0.20074781,109590.0,109580.0,0.576629]
[1748009494602,0.20074781,109590.0,109580.0,0.43936]
[1748009494969,0.01824891,109590.0,109580.0,0.66694439]
[1748009495174,0.1916217,109600.0,109580.0,0.64869265]
[1748009495330,0.00050815,109590.0,109580.0,0.98763265]
[1748009495529,0.00963232,109590.0,109580.0,1.95760565]
[1748009495730,0.00963232,109590.0,109580.0,1.95860565]
[1748009496300,0.00050815,109590.0,109580.0,2.35036565]
[1748009496499,0.00963248,109590.0,109580.0,2.15699465]
[1748009496724,0.00050815,109590.0,109580.0,1.96952565]
[1748009497000,0.00050815,109590.0,109580.0,2.41361206]
[1748009497218,0.19760815,109610.0,109600.0,0.276153]
[1748009497432,0.21585323,109610.0,109600.0,1.636942]
[1748009497623,0.40744116,109610.0,109600.0,1.6278185]
[1748009497829,0.41656475,109610.0,109600.0,0.7394945]
[1748009498448,0.21585356,109610.0,109600.0,1.0794945]
[1748009498650,0.22597664,109610.0,109600.0,1.088618]
[1748009498886,0.42868816,109610.0,109600.0,0.8472695]
[1748009499083,0.41956558,109610.0,109600.0,1.04753686]
[1748009499509,0.41044275,109610.0,109600.0,0.99499711]
[1748009499683,0.41044275,109610.0,109600.0,0.97102103]
[1748009500044,0.3921965,109610.0,109600.0,0.75982336]
[1748009500173,0.3921965,109610.0,109600.0,1.19914336]
[1748009500378,0.21885382,109610.0,109600.0,1.40899636]
[1748009500735,0.20060815,109610.0,109600.0,1.463529]
[1748009500889,0.21885374,109610.0,109600.0,1.463529]
[1748009501091,0.41956509,109610.0,109600.0,1.50076473]
[1748009501315,0.41956509,109610.0,109600.0,1.46966473]
[1748009501678,0.21885374,109610.0,109600.0,1.46966473]
[1748009501884,0.20473082,109610.0,109600.0,1.50988823]
[1748009502086,0.414565,109610.0,109600.0,1.50988823]
[1748009502300,0.40544175,109610.0,109600.0,1.50988823]
[1748009502504,0.21385365,109610.0,109600.0,1.50076473]
[1748009502755,0.20473073,109610.0,109600.0,1.50988823]
[1748009502906,0.21385348,109610.0,109600.0,1.50988823]
[1748009503117,0.19560815,109610.0,109600.0,1.51845436]
[1748009503380,0.19560815,109610.0,109600.0,1.60799992]
[1748009504230,0.19360815,109610.0,109600.0,1.60799992]
[1748009504432,0.19260815,109610.0,109600.0,1.61199992]
[1748009504843,0.19260815,109610.0,109600.0,0.78232344]
[1748009505044,0.2199764,109610.0,109600.0,1.46131461]
[1748009505259,0.19260815,109610.0,109600.0,1.54686017]
[1748009505429,0.19260815,109610.0,109600.0,1.60996017]
[1748009505877,0.21085323,109610.0,109600.0,1.54986017]
[1748009506081,0.19260815,109610.0,109600.0,1.58136017]
[1748009506235,0.19260815,109610.0,109600.0,1.61446017]
[1748009506436,0.20173082,109610.0,109600.0,1.61446017]
[1748009506634,0.21997673,109610.0,109600.0,1.18687461]
[1748009506841,0.20173082,109610.0,109600.0,1.46027461]
[1748009507038,0.21085365,109610.0,109600.0,1.46027461]
[1748009507252,0.20173082,109610.0,109600.0,1.46027461]
[1748009507570,0.19260815,109610.0,109600.0,1.61332017]
[1748009507921,0.16017816,109610.0,109600.0,1.63786102]
[1748009508149,0.002,109630.0,109620.0,0.62785556]
[1748009508348,0.002,109650.0,109640.0,0.54977643]
[1748009508568,0.002,109650.0,109640.0,3.22426799]
[1748009508811,0.002,109650.0,109640.0,3.28776799]
[1748009509440,0.002,109650.0,109640.0,3.28792018]
[1748009510696,0.004,109650.0,109640.0,3.29648631]